fUSD/lending_fUSD_20250623
["ID","MTS","AMOUNT","RATE_DAILY","PERIOD"]
[367167740,1750684242203,-497.35452181,0.00024657,2]
[367167742,1750684242212,-490.0,0.00024657,2]
[367167744,1750684242221,-490.0,0.00024657,2]
[367167746,1750684242230,-351.29572711,0.00024657,2]
[367167748,1750684242239,-155.77234936,0.00024657,2]
[367167750,1750684242248,-500.0,0.00024657,2]
[367167752,1750684242257,-500.0,0.00024657,2]
[367167754,1750684242266,-517.81182484,0.00024657,2]
[367167756,1750684242275,-490.0,0.00024657,2]
[367167758,1750684242284,-273.5390621,0.00024657,2]
[367167760,1750684242293,-490.0,0.00024657,2]
[367167762,1750684242302,-512.73,0.00024657,2]
[367167764,1750684242311,-490.0,0.00024657,2]
[367167765,1750684242320,-490.0,0.00024657,2]
[367167768,1750684242330,-490.0,0.00024657,2]
[367167770,1750684242340,-492.75894728,0.00024657,2]
[367167771,1750684242349,-490.0,0.00024657,2]
[367167773,1750684242359,-230.16497298,0.00024657,2]
[367167775,1750684242368,-490.0,0.00024657,2]
[367167777,1750684242377,-492.94469255,0.00024657,2]
[367167779,1750684242387,-490.0,0.00024657,2]
[367167781,1750684242398,-490.0,0.00024657,2]
[367167783,1750684242407,-490.0,0.00024657,2]
[367167785,1750684242417,-490.0,0.00024657,2]
[367167787,1750684242426,-490.0,0.00024657,2]
[367167789,1750684242436,-490.0,0.00024657,2]
[367167791,1750684242448,-490.0,0.00024657,2]
[367167794,1750684242457,-490.0,0.00024657,2]
[367167795,1750684242467,-490.0,0.00024657,2]
[367167797,1750684242476,-755.58,0.00024657,2]
[367167799,1750684242485,-490.0,0.00024657,2]
[367167801,1750684242495,-490.0,0.00024657,2]
[367167803,1750684242505,-534.25497618,0.00024657,2]
[367167805,1750684242514,-610.06,0.00024657,2]
[367167807,1750684242524,-420.87344098,0.00024657,2]
[367167810,1750684242533,-521.61,0.00024657,2]
[367167812,1750684242543,-490.0,0.00024657,2]
[367167815,1750684242552,-151.657516,0.00024657,2]
[367167817,1750684242561,-622.89,0.00024657,2]
[367167818,1750684242571,-490.0,0.00024657,2]
[367167821,1750684242580,-490.86987747,0.00024657,2]
[367167823,1750684242588,-211.23375528,0.00024657,2]
[367167825,1750684242598,-490.0,0.00024657,2]
[367167827,1750684242608,-211.63790771,0.00024657,2]
[367167829,1750684242619,-493.74126418,0.00024657,2]
[367167831,1750684242629,-490.0,0.00024657,2]
[367167833,1750684242641,-490.0,0.00024657,2]
[367167835,1750684242650,-490.0,0.00024657,2]
[367167837,1750684242659,-490.0,0.00024657,2]
[367167839,1750684242669,-490.0,0.00024657,2]
[367167841,1750684242679,-490.0,0.00024657,2]
[367167843,1750684242688,-490.0,0.00024657,2]
[367167845,1750684242698,-490.0,0.00024657,2]
[367167847,1750684242707,-490.0,0.00024657,2]
[367167850,1750684242717,-490.0,0.00024657,2]
[367167852,1750684242726,-490.0,0.00024657,2]
[367167854,1750684242736,-587.21,0.00024657,2]
[367167856,1750684242745,-490.0,0.00024657,2]
[367167858,1750684242755,-490.0,0.00024657,2]
[367167860,1750684242764,-490.0,0.00024657,2]
[367167863,1750684242774,-151.0,0.00024657,7]
[367167865,1750684242783,-490.0,0.00024657,2]
[367167868,1750684242793,-490.0,0.00024657,2]
[367167870,1750684242802,-1060.61,0.00024657,2]
[367167872,1750684242812,-200.950337,0.00024657,7]
[367167874,1750684242822,-490.0,0.00024657,2]
[367167877,1750684242832,-151.0,0.00024657,7]
[367167879,1750684242841,-185.22326792,0.00024657,2]
[367167881,1750684242851,-490.0,0.00024657,2]
[367167883,1750684242861,-151.476984,0.00024657,2]
[367167885,1750684242870,-914.32,0.00024657,2]
[367167887,1750684242880,-151.0,0.00024657,7]
[367167889,1750684242890,-490.0,0.00024657,2]
[367167891,1750684242899,-1651.66,0.00024657,2]
[367167893,1750684242909,-500.0,0.00024657,2]
[367167895,1750684242918,-500.0,0.00024657,2]
[367167897,1750684242928,-490.0,0.00024657,2]
[367167899,1750684242937,-505.10101235,0.00024657,2]
[367167901,1750684242947,-151.890718,0.00024657,7]
[367167903,1750684242956,-491.13037814,0.00024657,2]
[367167905,1750684242965,-490.0,0.00024657,2]
[367167907,1750684242975,-490.0,0.00024657,2]
[367167909,1750684242984,-151.0,0.00024657,7]
[367167911,1750684242994,-490.0,0.00024657,2]
[367167913,1750684243003,-490.0,0.00024657,2]
[367167915,1750684243014,-151.0,0.00024657,7]
[367167917,1750684243023,-490.0,0.00024657,2]
[367167919,1750684243032,-492.19068232,0.00024657,2]
[367167921,1750684243041,-490.0,0.00024657,2]
[367167923,1750684243050,-490.0,0.00024657,2]
[367167925,1750684243059,-151.657516,0.00024657,2]
[367167927,1750684243069,-490.0,0.00024657,2]
[367167929,1750684243083,-1347.42,0.00024657,2]
[367167931,1750684243092,-490.0,0.00024657,2]
[367167933,1750684243102,-490.0,0.00024657,2]
[367167935,1750684243111,-490.0,0.00024657,2]
[367167937,1750684243120,-151.0,0.00024657,7]
[367167939,1750684243130,-490.0,0.00024657,2]
[367167941,1750684243140,-769.73,0.00024657,2]
[367167943,1750684243151,-1000.0,0.00024657,2]
[367167945,1750684243160,-897.32,0.00024657,2]
[367167947,1750684243169,-490.0,0.00024657,2]
[367167949,1750684243179,-490.0,0.00024657,2]
[367167951,1750684243188,-490.0,0.00024657,2]
[367167953,1750684243197,-490.0,0.00024657,2]
[367167955,1750684243207,-490.0,0.00024657,2]
[367167957,1750684243216,-490.0,0.00024657,2]
[367167959,1750684243226,-608.58,0.00024657,2]
[367167961,1750684243235,-490.0,0.00024657,2]
[367167963,1750684243244,-490.0,0.00024657,2]
[367167965,1750684243253,-490.0,0.00024657,2]
[367167967,1750684243263,-490.0,0.00024657,2]
[367167969,1750684243272,-490.0,0.00024657,2]
[367167971,1750684243281,-490.0,0.00024657,2]
[367167973,1750684243290,-490.0,0.00024657,2]
[367167975,1750684243299,-490.0,0.00024657,2]
[367167977,1750684243308,-1838.07,0.00024657,2]
[367167979,1750684243318,-490.0,0.00024657,2]
[367167981,1750684243327,-490.0,0.00024657,2]
[367167983,1750684243337,-1199.75,0.00024657,2]
[367167986,1750684243347,-490.0,0.00024657,2]
[367167989,1750684243357,-1266.77,0.00024657,2]
[367167992,1750684243365,-693.57,0.00024657,2]
[367167995,1750684243374,-490.0,0.00024657,2]
[367167997,1750684243384,-572.67,0.00024657,2]
[367167999,1750684243395,-846.19,0.00024657,2]
[367168001,1750684243404,-490.0,0.00024657,2]
[367168003,1750684243413,-490.0,0.00024657,2]
[367168005,1750684243423,-1262.67,0.00024657,2]
[367168007,1750684243432,-490.0,0.00024657,2]
[367168011,1750684243441,-490.0,0.00024657,2]
[367168013,1750684243450,-500.0,0.00024657,2]
[367168015,1750684243459,-390.27234186,0.00024657,2]
[367168017,1750684243468,-151.0,0.00024657,7]
[367168019,1750684243477,-490.0,0.00024657,2]
[367168021,1750684243486,-151.0,0.00024657,7]
[367168023,1750684243495,-151.0,0.00024657,7]
[367168025,1750684243504,-359.14151047,0.00024657,2]
[367168027,1750684243513,-770.66,0.00024657,2]
[367168029,1750684243522,-490.0,0.00024657,2]
[367168030,1750684243531,-490.0,0.00024657,2]
[367168032,1750684243540,-490.0,0.00024657,2]
[367168035,1750684243549,-971.35,0.00024657,2]
[367168037,1750684243560,-490.0,0.00024657,2]
[367168039,1750684243569,-1226.65,0.00024657,2]
[367168041,1750684243578,-490.0,0.00024657,2]
[367168043,1750684243588,-269.032655,0.00024657,7]
[367168045,1750684243597,-453.89425983,0.00024657,2]
[367168047,1750684243606,-498.63,0.00024657,2]
[367168049,1750684243615,-490.0,0.00024657,2]
[367168051,1750684243624,-592.2,0.00024657,2]
[367168053,1750684243633,-1808.34,0.00024657,2]
[367168054,1750684243644,-490.0,0.00024657,2]
[367168057,1750684243655,-267.19938365,0.00024657,2]
[367168059,1750684243664,-1193.19,0.00024657,2]
[367168061,1750684243673,-151.0,0.00024657,7]
[367168063,1750684243683,-242.71725468,0.00024657,2]
[367168065,1750684243692,-151.0,0.00024657,7]
[367168067,1750684243701,-490.0,0.00024657,2]
[367168068,1750684243711,-490.0,0.00024657,2]
[367168070,1750684243720,-490.0,0.00024657,2]
[367168073,1750684243729,-490.0,0.00024657,2]
[367168074,1750684243738,-989.29,0.00024657,2]
[367168076,1750684243748,-490.0,0.00024657,2]
[367168077,1750684243757,-1488.58,0.00024657,2]
[367168078,1750684243766,-490.0,0.00024657,2]
[367168079,1750684243776,-490.0,0.00024657,2]
[367168080,1750684243785,-490.0,0.00024657,2]
[367168081,1750684243795,-368.73329124,0.00024657,2]
[367168083,1750684243804,-490.0,0.00024657,2]
[367168085,1750684243813,-491.40167238,0.00024657,2]
[367168088,1750684243823,-490.0,0.00024657,2]
[367168090,1750684243832,-490.0,0.00024657,2]
[367168092,1750684243841,-151.0,0.00024657,7]
[367168094,1750684243850,-151.0,0.00024657,7]
[367168096,1750684243859,-490.0,0.00024657,2]
[367168098,1750684243868,-490.0,0.00024657,2]
[367168099,1750684243877,-270.36381264,0.00024657,2]
[367168101,1750684243886,-608.43,0.00024657,2]
[367168104,1750684243898,-490.0,0.00024657,2]
[367168106,1750684243907,-151.0,0.00024657,7]
[367168107,1750684243917,-151.0,0.00024657,7]
[367168109,1750684243926,-490.0,0.00024657,2]
[367168111,1750684243935,-490.0,0.00024657,2]
[367168113,1750684243943,-599.6,0.00024657,2]
[367168116,1750684243952,-1706.36,0.00024657,2]
[367168118,1750684243961,-490.0,0.00024657,2]
[367168120,1750684243970,-492.57937457,0.00024657,2]
[367168122,1750684243979,-490.0,0.00024657,2]
[367168124,1750684243987,-490.0,0.00024657,2]
[367168126,1750684243997,-490.0,0.00024657,2]
[367168128,1750684244006,-151.657517,0.00024657,2]
[367168130,1750684244015,-490.0,0.00024657,2]
[367168132,1750684244024,-1136.89,0.00024657,2]
[367168134,1750684244033,-490.0,0.00024657,2]
[367168136,1750684244042,-490.9953592,0.00024657,2]
[367168138,1750684244052,-490.0,0.00024657,2]
[367168140,1750684244061,-490.0,0.00024657,2]
[367168142,1750684244073,-492.84977416,0.00024657,2]
[367168144,1750684244082,-685.61,0.00024657,2]
[367168147,1750684244091,-490.0,0.00024657,2]
[367168149,1750684244101,-490.0,0.00024657,2]
[367168151,1750684244110,-491.76867525,0.00024657,2]
[367168153,1750684244120,-490.0,0.00024657,2]
[367168155,1750684244129,-490.0,0.00024657,2]
[367168156,1750684244138,-490.0,0.00024657,2]
[367168158,1750684244149,-490.0,0.00024657,2]
[367168160,1750684244159,-1273.3,0.00024657,2]
[367168163,1750684244169,-490.712363,0.00024657,2]
[367168165,1750684244179,-490.0,0.00024657,2]
[367168167,1750684244188,-685.74,0.00024657,2]
[367168169,1750684244197,-490.0,0.00024657,2]
[367168171,1750684244207,-490.0,0.00024657,2]
[367168173,1750684244216,-515.45721699,0.00024657,2]
[367168175,1750684244225,-490.0,0.00024657,2]
[367168177,1750684244234,-490.0,0.00024657,2]
[367168179,1750684244243,-490.0,0.00024657,2]
[367168181,1750684244252,-490.0,0.00024657,2]
[367168183,1750684244261,-977.3,0.00024657,2]
[367168185,1750684244270,-1420.71,0.00024657,2]
[367168187,1750684244279,-151.0,0.00024657,2]
[367168189,1750684244288,-490.0,0.00024657,2]
[367168191,1750684244297,-490.80819064,0.00024657,2]
[367168193,1750684244307,-490.27535494,0.00024657,2]
[367168195,1750684244316,-490.0,0.00024657,2]
[367168197,1750684244326,-490.0,0.00024657,2]
[367168199,1750684244335,-601.04,0.00024657,2]
[367168201,1750684244344,-490.0,0.00024657,2]
[367168203,1750684244354,-490.0,0.00024657,2]
[367168205,1750684244363,-490.0,0.00024657,2]
[367168207,1750684244373,-490.0,0.00024657,2]
[367168209,1750684244382,-490.0,0.00024657,2]
[367168211,1750684244393,-490.0,0.00024657,2]
[367168213,1750684244404,-1475.29,0.00024657,2]
[367168215,1750684244413,-490.0,0.00024657,2]
[367168217,1750684244423,-490.0,0.00024657,2]
[367168219,1750684244432,-250.0,0.00024657,2]
[367168221,1750684244441,-490.0,0.00024657,2]
[367168223,1750684244450,-490.0,0.00024657,2]
[367168225,1750684244459,-717.56,0.00024657,2]
[367168227,1750684244468,-151.0,0.00024657,7]
[367168229,1750684244478,-151.0,0.00024657,7]
[367168231,1750684244488,-490.0,0.00024657,2]
[367168233,1750684244499,-490.0,0.00024657,2]
[367168235,1750684244508,-721.85,0.00024657,2]
[367168237,1750684244517,-490.0,0.00024657,2]
[367168239,1750684244527,-151.0,0.00024657,7]
[367168241,1750684244536,-490.0,0.00024657,2]
[367168243,1750684244546,-490.0,0.00024657,2]
[367168245,1750684244556,-490.0,0.00024657,2]
[367168247,1750684244565,-490.0,0.00024657,2]
[367168249,1750684244575,-490.0,0.00024657,2]
[367168252,1750684244585,-708.28,0.00024657,2]
[367168254,1750684244595,-783.98,0.00024657,2]
[367168256,1750684244604,-151.0,0.00024657,7]
[367168258,1750684244614,-490.0,0.00024657,2]
[367168260,1750684244624,-151.0,0.00024657,7]
[367168262,1750684244633,-151.0,0.00024657,7]
[367168264,1750684244643,-490.0,0.00024657,2]
[367168266,1750684244652,-490.0,0.00024657,2]
[367168268,1750684244662,-490.28606205,0.00024657,2]
[367168270,1750684244671,-755.55,0.00024657,2]
[367168272,1750684244680,-490.0,0.00024657,2]
[367168274,1750684244689,-152.513498,0.00024657,7]
[367168276,1750684244697,-490.0,0.00024657,2]
[367168278,1750684244707,-950.93,0.00024657,2]
[367168280,1750684244716,-567.77,0.00024657,2]
[367168282,1750684244725,-490.0,0.00024657,2]
[367168284,1750684244733,-1372.29,0.00024657,2]
[367168285,1750684244742,-567.69,0.00024657,2]
[367168287,1750684244751,-490.0,0.00024657,2]
[367168289,1750684244760,-861.88,0.00024657,2]
[367168291,1750684244770,-490.0,0.00024657,2]
[367168294,1750684244779,-490.0,0.00024657,2]
[367168296,1750684244788,-490.0,0.00024657,2]
[367168297,1750684244797,-584.07,0.00024657,2]
[367168299,1750684244807,-490.0,0.00024657,2]
[367168302,1750684244815,-490.0,0.00024657,2]
[367168304,1750684244825,-490.0,0.00024657,2]
[367168306,1750684244834,-490.0,0.00024657,2]
[367168307,1750684244843,-1468.74,0.00024657,2]
[367168309,1750684244852,-1066.39,0.00024657,2]
[367168311,1750684244861,-490.0,0.00024657,2]
[367168313,1750684244870,-884.98,0.00024657,2]
[367168315,1750684244879,-490.0,0.00024657,2]
[367168317,1750684244888,-1808.88,0.00024657,2]
[367168319,1750684244898,-490.0,0.00024657,2]
[367168321,1750684244907,-1274.62,0.00024657,2]
[367168324,1750684244916,-490.0,0.00024657,2]
[367168326,1750684244925,-604.6,0.00024657,2]
[367168328,1750684244935,-487.19111733,0.00024657,2]
[367168329,1750684244944,-490.0,0.00024657,2]
[367168332,1750684244953,-490.0,0.00024657,2]
[367168334,1750684244963,-490.0,0.00024657,2]
[367168336,1750684244973,-490.0,0.00024657,2]
[367168338,1750684244982,-490.0,0.00024657,2]
[367168340,1750684244992,-612.18,0.00024657,2]
[367168342,1750684245001,-490.0,0.00024657,2]
[367168344,1750684245011,-995.94,0.00024657,2]
[367168346,1750684245020,-490.0,0.00024657,2]
[367168348,1750684245029,-490.0,0.00024657,2]
[367168350,1750684245039,-371.71832694,0.00024657,2]
[367168352,1750684245048,-847.85,0.00024657,2]
[367168354,1750684245057,-490.0,0.00024657,2]
[367168356,1750684245067,-490.0,0.00024657,2]
[367168358,1750684245079,-490.0,0.00024657,2]
[367168360,1750684245089,-778.44,0.00024657,2]
[367168361,1750684245098,-490.0,0.00024657,2]
[367168363,1750684245107,-152.465105,0.00024657,2]
[367168366,1750684245118,-512.41567235,0.00024657,2]
[367168367,1750684245127,-490.0,0.00024657,2]
[367168369,1750684245136,-490.0,0.00024657,2]
[367168372,1750684245148,-490.0,0.00024657,2]
[367168374,1750684245158,-490.0,0.00024657,2]
[367168376,1750684245167,-493.24278846,0.00024657,2]
[367168377,1750684245180,-490.0,0.00024657,2]
[367168380,1750684245196,-822.55,0.00024657,2]
[367168382,1750684245206,-490.0,0.00024657,2]
[367168384,1750684245217,-625.92,0.00024657,2]
[367168386,1750684245226,-490.0,0.00024657,2]
[367168388,1750684245236,-490.0,0.00024657,2]
[367168390,1750684245246,-612.16,0.00024657,2]
[367168392,1750684245255,-490.0,0.00024657,2]
[367168394,1750684245265,-487.96945855,0.00024657,2]
[367168396,1750684245275,-490.0,0.00024657,2]
[367168398,1750684245285,-490.0,0.00024657,2]
[367168400,1750684245295,-490.0,0.00024657,2]
[367168402,1750684245304,-362.41801606,0.00024657,2]
[367168404,1750684245314,-1907.2,0.00024657,2]
[367168406,1750684245324,-490.0,0.00024657,2]
[367168408,1750684245334,-1191.24,0.00024657,2]
[367168410,1750684245343,-490.0,0.00024657,2]
[367168412,1750684245353,-490.0,0.00024657,2]
[367168414,1750684245363,-491.48028437,0.00024657,2]
[367168416,1750684245372,-523.24,0.00024657,2]
[367168418,1750684245382,-872.04,0.00024657,2]
[367168420,1750684245393,-490.0,0.00024657,2]
[367168435,1750684245528,-490.0,0.00024657,2]
[367168437,1750684245538,-490.0,0.00024657,2]
[367168439,1750684245548,-490.0,0.00024657,2]
[367168441,1750684245558,-490.0,0.00024657,2]
[367168443,1750684245569,-490.0,0.00024657,2]
[367168445,1750684245579,-350.54219908,0.00024657,2]
[367168447,1750684245590,-490.0,0.00024657,2]
[367168449,1750684245603,-854.24,0.00024657,2]
[367168451,1750684245614,-490.0,0.00024657,2]
[367168453,1750684245624,-490.0,0.00024657,2]
[367168456,1750684245634,-490.0,0.00024657,2]
[367168458,1750684245645,-492.7443296,0.00024657,2]
[367168460,1750684245655,-490.0,0.00024657,2]
[367168463,1750684245666,-1342.38,0.00024657,2]
[367168465,1750684245675,-490.0,0.00024657,2]
[367168467,1750684245686,-490.0,0.00024657,2]
[367168469,1750684245695,-874.08,0.00024657,2]
[367168471,1750684245705,-1302.38,0.00024657,2]
[367168473,1750684245717,-1224.85,0.00024657,2]
[367168475,1750684245728,-776.61,0.00024657,2]
[367168477,1750684245737,-490.0,0.00024657,2]
[367168479,1750684245746,-2117.5,0.00024657,2]
[367168481,1750684245756,-490.0,0.00024657,2]
[367168483,1750684245765,-875.36,0.00024657,2]
[367168485,1750684245775,-237.38533067,0.00024657,2]
[367168487,1750684245784,-490.0,0.00024657,2]
[367168489,1750684245794,-752.44,0.00024657,2]
[367168491,1750684245803,-503.55,0.00024657,2]
[367168493,1750684245813,-1275.37,0.00024657,2]
[367168495,1750684245824,-492.41485868,0.00024657,2]
[367168497,1750684245834,-1558.99,0.00024657,2]
[367168499,1750684245843,-490.0,0.00024657,2]
[367168501,1750684245853,-490.0,0.00024657,2]
[367168503,1750684245863,-490.0,0.00024657,2]
[367168505,1750684245873,-490.0,0.00024657,2]
[367168507,1750684245884,-490.0,0.00024657,2]
[367168510,1750684245894,-985.61,0.00024657,2]
[367168511,1750684245904,-490.0,0.00024657,2]
[367168514,1750684245914,-1051.73,0.00024657,2]
[367168516,1750684245923,-1078.65,0.00024657,2]
[367168518,1750684245933,-490.0,0.00024657,2]
[367168520,1750684245943,-490.0,0.00024657,2]
[367168522,1750684245952,-487.58669622,0.00024657,2]
[367168524,1750684245962,-490.0,0.00024657,2]
[367168526,1750684245970,-490.0,0.00024657,2]
[367168528,1750684245980,-847.84,0.00024657,2]
[367168530,1750684245990,-151.0,0.00024657,7]
[367168532,1750684245999,-151.0,0.00024657,7]
[367168534,1750684246009,-545.87,0.00024657,2]
[367168536,1750684246019,-213.574319,0.00024657,7]
[367168538,1750684246029,-491.89745248,0.00024657,2]
[367168540,1750684246038,-151.0,0.00024657,7]
[367168542,1750684246048,-151.0,0.00024657,7]
[367168544,1750684246057,-491.06881529,0.00024657,2]
[367168546,1750684246067,-500.0,0.00024657,2]
[367168548,1750684246080,-490.0,0.00024657,2]
[367168550,1750684246090,-500.0,0.00024657,2]
[367168552,1750684246100,-262.38278019,0.00024657,2]
[367168554,1750684246110,-493.0412646,0.00024657,2]
[367168556,1750684246121,-1668.57,0.00024657,2]
[367168558,1750684246131,-1082.01,0.00024657,2]
[367168561,1750684246142,-490.0,0.00024657,2]
[367168562,1750684246152,-490.0,0.00024657,2]
[367168565,1750684246162,-535.84,0.00024657,2]
[367168567,1750684246173,-490.0,0.00024657,2]
[367168568,1750684246182,-1455.64,0.00024657,2]
[367168570,1750684246192,-1148.95,0.00024657,2]
[367168572,1750684246202,-494.86745891,0.00024657,2]
[367168574,1750684246211,-490.0,0.00024657,2]
[367168576,1750684246221,-490.0,0.00024657,2]
[367168578,1750684246230,-490.0,0.00024657,2]
[367168580,1750684246240,-490.0,0.00024657,2]
[367168582,1750684246250,-490.0,0.00024657,2]
[367168584,1750684246260,-490.0,0.00024657,2]
[367168586,1750684246270,-506.82,0.00024657,2]
[367168588,1750684246280,-893.46,0.00024657,2]
[367168591,1750684246290,-494.90934182,0.00024657,2]
[367168593,1750684246299,-1518.89,0.00024657,2]
[367168595,1750684246309,-500.0,0.00024657,2]
[367168597,1750684246319,-500.0,0.00024657,2]
[367168599,1750684246328,-490.0,0.00024657,2]
[367168600,1750684246338,-500.0,0.00024657,2]
[367168602,1750684246348,-1811.68,0.00024657,2]
[367168604,1750684246358,-490.0,0.00024657,2]
[367168606,1750684246367,-151.0,0.00024657,7]
[367168608,1750684246377,-151.0,0.00024657,7]
[367168610,1750684246387,-490.0,0.00024657,2]
[367168612,1750684246398,-151.0,0.00024657,7]
[367168614,1750684246408,-561.72,0.00024657,2]
[367168616,1750684246417,-619.86,0.00024657,2]
[367168618,1750684246427,-490.0,0.00024657,2]
[367168620,1750684246436,-151.390414,0.00024657,7]
[367168622,1750684246446,-490.0,0.00024657,2]
[367168624,1750684246456,-485.0817314,0.00024657,2]
[367168626,1750684246466,-1934.66,0.00024657,2]
[367168628,1750684246475,-490.0,0.00024657,2]
[367168630,1750684246489,-998.85,0.00024657,2]
[367168632,1750684246499,-908.66,0.00024657,2]
[367168634,1750684246509,-2921.87,0.00024657,2]
[367168636,1750684246518,-490.0,0.00024657,2]
[367168638,1750684246528,-492.08503644,0.00024657,2]
[367168640,1750684246539,-354.6142256,0.00024657,2]
[367168642,1750684246548,-490.0,0.00024657,2]
[367168644,1750684246558,-1605.1,0.00024657,2]
[367168646,1750684246568,-490.0,0.00024657,2]
[367168648,1750684246577,-490.0,0.00024657,2]
[367168650,1750684246587,-600.68,0.00024657,2]
[367168652,1750684246597,-495.83476991,0.00024657,2]
[367168654,1750684246607,-490.0,0.00024657,2]
[367168656,1750684246618,-490.0,0.00024657,2]
[367168658,1750684246627,-490.0,0.00024657,2]
[367168660,1750684246637,-490.0,0.00024657,2]
[367168662,1750684246649,-1465.97,0.00024657,2]
[367168664,1750684246659,-702.55,0.00024657,2]
[367168666,1750684246668,-490.0,0.00024657,2]
[367168668,1750684246678,-210.0,0.00024657,2]
[367168670,1750684246687,-490.0,0.00024657,2]
[367168672,1750684246697,-490.0,0.00024657,2]
[367168674,1750684246706,-490.0,0.00024657,2]
[367168676,1750684246716,-490.0,0.00024657,2]
[367168678,1750684246725,-490.0,0.00024657,2]
[367168680,1750684246735,-492.0966254,0.00024657,2]
[367168682,1750684246744,-490.0,0.00024657,2]
[367168684,1750684246754,-490.0,0.00024657,2]
[367168686,1750684246764,-490.0,0.00024657,2]
[367168688,1750684246773,-490.0,0.00024657,2]
[367168690,1750684246783,-490.0,0.00024657,2]
[367168692,1750684246792,-767.9,0.00024657,2]
[367168694,1750684246802,-490.0,0.00024657,2]
[367168696,1750684246811,-905.21,0.00024657,2]
[367168698,1750684246820,-490.0,0.00024657,2]
[367168700,1750684246830,-490.0,0.00024657,2]
[367168702,1750684246839,-490.0,0.00024657,2]
[367168704,1750684246848,-522.44119276,0.00024657,2]
[367168706,1750684246858,-490.0,0.00024657,2]
[367168708,1750684246868,-490.0,0.00024657,2]
[367168710,1750684246879,-490.0,0.00024657,2]
[367168712,1750684246888,-492.08777401,0.00024657,2]
[367168714,1750684246900,-490.0,0.00024657,2]
[367168716,1750684246909,-619.66,0.00024657,2]
[367168718,1750684246919,-151.0,0.00024657,7]
[367168720,1750684246928,-490.0,0.00024657,2]
[367168722,1750684246938,-843.03,0.00024657,2]
[367168723,1750684246947,-1089.7,0.00024657,2]
[367168725,1750684246957,-1181.38,0.00024657,2]
[367168727,1750684246966,-490.0,0.00024657,2]
[367168729,1750684246976,-490.57589849,0.00024657,2]
[367168732,1750684246985,-490.0,0.00024657,2]
[367168733,1750684246995,-500.0,0.00024657,2]
[367168735,1750684247005,-500.0,0.00024657,2]
[367168737,1750684247014,-500.0,0.00024657,2]
[367168739,1750684247024,-543.56003654,0.00024657,2]
[367168741,1750684247033,-667.58,0.00024657,2]
[367168744,1750684247043,-301.658076,0.00024657,4]
[367168745,1750684247053,-1941.97,0.00024657,2]
[367168747,1750684247062,-490.0,0.00024657,2]
[367168749,1750684247072,-1329.56,0.00024657,2]
[367168751,1750684247085,-490.0,0.00024657,2]
[367168753,1750684247094,-490.0,0.00024657,2]
[367168755,1750684247103,-490.0,0.00024657,2]
[367168757,1750684247112,-2369.41,0.00024657,2]
[367168759,1750684247122,-1513.74,0.00024657,2]
[367168761,1750684247131,-490.0,0.00024657,2]